[Event "Benidorm Open-A 2022"]
[Site "Benidorm"]
[Date "2022.12.08"]
[Round "7.26"]
[White "Horcajada Reales, Guillermo"]
[Black "Troffiguer, Olivier"]
[Result "1/2-1/2"]
[ECO "D38"]
[WhiteElo "2081"]
[BlackElo "2007"]
[Annotator "TA"]
[PlyCount "86"]
[EventDate "2022.12.03"]
[EventType "swiss"]
[EventCountry "ESP"]
[SourceTitle "playchess.com"]
[Source "ChessBase"]
[SourceQuality "1"]
[TimeControl "5400+30"]

{[%evp 13,86,21,21,15,18,23,46,-50,0,-17,34,33,49,30,26,21,27,18,22,21,21,20,26,26,29,28,29,16,20,0,40,39,32,23,35,10,31,18,25,18,21,0,20,-11,8,0,0,-8,-8,-8,-8,-8,-8,-8,-8,-20,-8,-16,-4,-12,-8,-78,-65,-79,-72,-77,-58,-129,-122,-122,-77,-80,-36,-36,0]} 1. c4 e6 2. Nc3 d5 3. d4 Bb4 4. Nf3 Nf6 5. Bg5 h6 6. Bxf6 Qxf6 7. Qb3 c5 8. cxd5 {D38: Queen's Gambit Declined: Ragozin Defence (4 Nf3 Bb4).} exd5 9. e3 {9.e3 scores better than 9.a3.} (9. dxc5 {simplifies} Bxc3+ 10. Qxc3 Qxc3+ 11. bxc3 Na6 12. Rd1) 9... Nc6 {[%cal Rc5d4]} 10. a3 ({Don't play} 10. Qxd5 Be6 11. Qe4 O-O-O $15) ({White should play} 10. Bb5 $14) 10... Bxc3+ (10... c4 $15 11. Qd1 Bxc3+ 12. bxc3 O-O) 11. bxc3 {[#]} cxd4 $146 (11... c4 $11 12. Qb5 Qf5) ({Predecessor:} 11... c4 12. Qb5 Qd6 13. Be2 Bd7 14. Qb1 O-O 15. O-O Rab8 16. Nd2 f5 17. f3 Rbe8 {0-1 (50) Lagrotteria,S (2150)-Lovati,P Bratto 1996}) 12. cxd4 $14 Qd6 13. Bb5 O-O 14. O-O Bg4 15. Nd2 Ne7 16. Rfc1 Rfc8 17. Bd3 Rxc1+ 18. Rxc1 Rc8 19. Rxc8+ Bxc8 20. Qc3 b6 21. f3 Qc6 22. Qxc6 Nxc6 {[%mdl 4096] Endgame KBN-KBN} 23. Kf2 Kf8 24. Nb3 Be6 25. Ke2 Ke7 26. Kd2 f5 27. g3 g5 28. h4 Nd8 29. hxg5 hxg5 30. Kc3 Nf7 31. Kb4 Nd6 32. Nd2 a5+ 33. Kc3 Bd7 34. Kb3 Kf6 35. Kc3 Be6 36. Be2 g4 37. f4 (37. Bd3 $11 {keeps the balance.}) 37... Bd7 38. Bd3 Ne8 39. Kb3 Ng7 40. Kc3 ({White should try} 40. Nb1 $15) 40... Nh5 $17 41. Nf1 Ke6 42. Kb3 {Prevents Ba4+.} Kd6 43. Kc3 Ke6 {Weighted Error Value: White=0.17 (very precise) /Black=0.11 (very precise)} 1/2-1/2

[Event "Benidorm Open-A 2022"]
[Site "Benidorm"]
[Date "2022.12.08"]
[Round "7.27"]
[White "Palomo Teruel, Xavier"]
[Black "Parramon Ros, Francesc"]
[Result "1/2-1/2"]
[ECO "B06"]
[WhiteElo "2040"]
[BlackElo "2003"]
[Annotator "TA"]
[PlyCount "77"]
[EventDate "2022.12.03"]
[EventType "swiss"]
[EventCountry "ESP"]
[SourceTitle "playchess.com"]
[Source "ChessBase"]
[SourceQuality "1"]
[TimeControl "5400+30"]

{[%evp 10,77,39,36,39,35,30,25,36,36,39,0,6,-91,-24,-50,-59,-57,-23,-25,-27,-114,-110,-119,-105,-165,-70,-184,-159,-230,-237,-234,-226,-214,-230,-279,-162,-150,-154,-152,-155,-186,-174,-453,-167,-305,-194,-197,-81,-75,0,0,0,-101,-108,-96,-67,-89,-85,-74,0,0,0,0,0,0,0,0,0,0]} 1. e4 g6 2. d4 Bg7 3. Be3 d6 4. Nc3 a6 5. a4 Nf6 6. f3 O-O {6...Nc6 is more fashionable. B06: Modern Defence.} 7. Nge2 e5 8. Qd2 Nc6 {White has an edge.} 9. d5 Ne7 10. Rd1 Ne8 {[#]} 11. Bh6 $146 {[#]} (11. g3 $11 {keeps the balance.}) ({Predecessor:} 11. g3 f5 12. Bg2 Nf6 13. h3 b5 14. axb5 Rb8 15. bxa6 Bxa6 16. b3 Nh5 17. Bf2 {0-1 (33) Lopez Martinez,J (2543)-Zvjaginsev,V (2656) Pamplona 2010}) 11... f5 (11... Nxd5 $1 $17 12. Bg5 (12. Nxd5 Qh4+) 12... Ne7) 12. Be3 Nf6 13. Bg5 Kh8 14. Nc1 fxe4 15. Bxf6 (15. fxe4 $11 Neg8 16. Be2) 15... Bxf6 16. Nxe4 Nf5 {[%cal Be7f5,Bf5d4,Bd4f3][%mdl 32]} 17. Bc4 (17. Nxf6 $17 {keeps fighting.} Qxf6 18. Nd3) 17... Bd7 (17... Bg7 $19 {Threatens to win with ...Bh6.} 18. O-O Bh6) 18. a5 (18. Nxf6 $15 Qxf6 19. O-O) 18... Bh4+ $19 19. g3 {[#]} (19. Kf1 $17 {was worth a try.}) 19... Nd4 $1 20. O-O Nxf3+ 21. Rxf3 Rxf3 22. Qg2 Rf5 (22... Re3 $142 {[%cal Od7f5] And now ...Bf5! would win.} 23. Bd3 Bg5) 23. gxh4 Qxh4 24. Ne2 {Inhibits Rf4.} Raf8 {White must now prevent ...Rf3.} 25. N2g3 Rf4 26. Rf1 $2 (26. Re1) 26... Kg8 $2 (26... Bh3 27. Rxf4 Rxf4) 27. Qe2 (27. Re1 {only move.}) 27... Bh3 28. Rf2 Rxf2 (28... Bg4 $19 {is more deadly.} 29. Qe3 Bf3) 29. Nxf2 $17 Rxf2 30. Kxf2 $11 Bg4 31. Qe3 (31. Qe4 $11) 31... Qxh2+ $17 32. Ke1 Qxc2 33. Bd3 Qxb2 {aiming for ...Kg7.} 34. Ne4 Kg7 (34... Qa1+ $17 35. Kf2 Bf5 36. Nf6+ Kf7 37. Nxh7 Qxa5) 35. Qg5 $11 {The position is equal.} Qa1+ 36. Kf2 Qd4+ 37. Kg2 Bf3+ ({But not} 37... Qxd5 38. Qf6+ Kh6 39. Qf8+ Kh5 40. Qf1 $14) 38. Kg3 {[%mdl 64] Intending Qe7+ and mate. Really sharp!} Bxe4 39. Qe7+ {And White is the lucky defender.   Weighted Error Value: White=0.44/Black=0.37} 1/2-1/2

[Event "Benidorm Open-A 2022"]
[Site "Benidorm"]
[Date "2022.12.08"]
[Round "7.28"]
[White "Draghici Flutur, Gavril"]
[Black "Ilinca Ilinca, Felix Antonio"]
[Result "0-1"]
[ECO "B23"]
[WhiteElo "2012"]
[BlackElo "2233"]
[Annotator "TA"]
[PlyCount "66"]
[EventDate "2022.12.03"]
[EventType "swiss"]
[EventCountry "ESP"]
[SourceTitle "playchess.com"]
[Source "ChessBase"]
[SourceQuality "1"]
[TimeControl "5400+30"]

{[%evp 16,66,-25,-42,-39,-2,6,-52,-24,-179,-175,-180,-122,-129,-95,-110,-88,-86,-89,-77,-102,-67,-57,-116,-89,-110,-48,-177,-172,-173,-172,-504,-503,-633,-631,-626,-303,-294,-291,-288,-279,-598,-597,-594,-596,-636,-627,-776,-702,-695,-682,-968,-948]} 1. e4 c5 2. Nc3 d6 3. f4 Nc6 4. Nf3 g6 5. Bc4 Bg7 6. O-O e6 7. d3 Nge7 8. Qe1 O-O 9. Qh4 {[%cal Of4f5]} d5 $1 {9...d5 is better than 9...Nd4. B23: Closed Sicilian: Lines without g3.} 10. Bb3 Nd4 {Prevents f5.} 11. f5 (11. Ng5 h6 12. Nf3 b6 $15) ({White should play} 11. Nxd4 $11 cxd4 12. Ne2) 11... gxf5 {Black is slightly better.} (11... exf5 {simplifies} 12. Nxd4 Bxd4+ 13. Kh1 Be6) 12. Bg5 $2 (12. Nxd4 $11 {and White stays safe.} cxd4 13. Nd1) 12... f6 $19 13. Bh6 Ng6 (13... fxe4 $19 14. Nxd4 (14. Bxg7 $2 Ndf5 $19) 14... cxd4) 14. Qh5 $17 {[#]} fxe4 $146 ({Predecessor:} 14... Nxb3 15. axb3 fxe4 16. Bxg7 Kxg7 17. dxe4 d4 18. Rad1 Qe7 19. e5 f5 20. Ne2 Bd7 {0-1 (29) Alvarez,A (1989)-Prieu,G (1997) Buenos Aires 2011}) 15. dxe4 Nxf3+ (15... dxe4 {with more complications.} 16. Bxg7 Kxg7 17. Nxe4 c4) 16. Rxf3 c4 17. Bxg7 Kxg7 ({Don't play} 17... Qb6+ 18. Kh1 Kxg7 19. Rh3 $1 $14) 18. Rh3 {[%csl Gh3][%cal Rh5h7]} Rh8 19. Qh6+ Kf7 20. Ba4 {[#]} d4 ({Black should try} 20... a6 $1 $17 {Hoping for ...d4.} 21. Rf3 b5) 21. Ne2 (21. Nb5 $1 $15 a6 22. Nc7) 21... e5 $36 {[%mdl 2048] aiming for ...Bg4. White is under strong pressure.} 22. Rf3 {Threatens to win with Ng3.} Bg4 23. Raf1 (23. Rf2 {nothing else works.} Bxe2 24. Rxe2) 23... Bxf3 24. Rxf3 Qa5 {And now ...Qe1+ would win.} 25. Ng3 {[%cal Og3f5]} Qe1+ (25... Nf4 $142 26. h3 Qd2 27. Rxf4 Qe3+ 28. Kh1 Qc1+ 29. Nf1 Qxf4 30. Qxf4 exf4) 26. Rf1 Qe3+ 27. Qxe3 dxe3 {[%cal Bd4e3,Be3e2][%mdl 32]} 28. Nh5 $2 (28. Bb5 {is tougher.} Rac8 29. Bd7) 28... Nf4 {Black is clearly winning.} 29. Nxf4 exf4 30. Rxf4 Rhd8 {White must now prevent ...Rd1+.} 31. Rf1 {Prevents Rd1.} e2 32. Re1 a6 33. c3 Rd2 {Weighted Error Value: White=0.92/Black=0.41} 0-1

[Event "Benidorm Open-A 2022"]
[Site "Benidorm"]
[Date "2022.12.08"]
[Round "7.29"]
[White "Clemente Llamero, Roberto"]
[Black "Docx, Stefan"]
[Result "0-1"]
[ECO "B84"]
[WhiteElo "1955"]
[BlackElo "2446"]
[Annotator "TA"]
[PlyCount "50"]
[EventDate "2022.12.03"]
[EventType "swiss"]
[EventCountry "ESP"]
[SourceTitle "playchess.com"]
[Source "ChessBase"]
[SourceQuality "1"]
[TimeControl "5400+30"]

{[%evp 13,50,28,42,55,60,58,52,50,53,0,12,0,6,-8,3,-3,0,0,0,0,0,-3,-11,-27,-24,-131,-123,-131,-96,-117,-124,-162,-95,-176,-39,-134,-122,-733,-700]} 1. e4 c5 2. Nf3 d6 3. d4 cxd4 4. Nxd4 Nf6 5. Nc3 a6 6. Be2 e6 7. f4 Nbd7 8. Bf3 {B84: Sicilian Scheveningen: 6 Be2 a6, lines without early Be3.} g6 {is the legacy move (8...Qc7).} 9. Nb3 Qc7 10. a4 {[%cal Ba2a4,Ba4a5][%mdl 32] White is slightly better.} Bg7 11. a5 Rb8 12. O-O O-O 13. Kh1 b6 14. axb6 {[#]} Nxb6 $146 ({Predecessor:} 14... Rxb6 15. Be3 Rb4 16. Bd2 Rb6 17. Qe2 Bb7 18. Na4 Rb5 19. Nd4 Nxe4 20. Nxb5 axb5 21. Bxe4 bxa4 22. Bxb7 Qxb7 23. Rxa4 Qxb2 {½-½ (74) Zelcic,R (2514)-Atlas,V (2478) Austria 2005}) 15. Na5 Nc4 16. Nxc4 Qxc4 17. Ra4 Qc7 18. Be2 Qb6 19. Rd4 {[#]} (19. Ra3 $11) 19... Ng4 $1 $17 {[%cal Bf6g4,Bg4e5,Be5g4][%mdl 544]} 20. e5 dxe5 21. fxe5 Nxe5 22. Rd6 {[#]} Qa5 (22... Qc7 $1 $19 23. Bxa6 Nc4 24. Bxc4 Qxc4) 23. Rf4 (23. Ne4 $17) 23... Rb4 (23... Qc7 $19 {...f5 is the strong threat.} 24. Rfd4 f5) 24. Rxb4 (24. Ne4 $1 $15 Ra4 25. Nf6+ Bxf6 26. Rxf6) 24... Qxb4 25. Bxa6 $2 {[%mdl 8192]} (25. Rd4 $17 Qb6 26. Ra4) 25... Ng4 {Weighted Error Value: White=0.64/Black=0.21 (precise)} 0-1

[Event "Benidorm Open-A 2022"]
[Site "Benidorm"]
[Date "2022.12.08"]
[Round "7.30"]
[White "Plaskett, H James"]
[Black "Perez Ruiz, Santiago"]
[Result "1-0"]
[ECO "B07"]
[WhiteElo "2365"]
[BlackElo "1966"]
[Annotator "TA"]
[PlyCount "45"]
[EventDate "2022.12.03"]
[EventType "swiss"]
[EventCountry "ESP"]
[SourceTitle "playchess.com"]
[Source "ChessBase"]
[SourceQuality "1"]
[TimeControl "5400+30"]

{[%evp 11,45,36,48,50,58,50,101,29,34,26,20,35,43,31,55,36,41,50,86,68,96,91,100,84,195,185,193,187,323,314,412,435,421,398,717,717]} 1. e4 d6 2. d4 Nf6 3. Nc3 g6 4. f3 Bg7 5. Be3 c6 6. Qd2 h5 7. Nge2 {B07: Pirc Defence: Miscellaneous Systems.} Qa5 8. Nc1 b5 ({Better is} 8... Qc7 $14) 9. Nb3 (9. a4 $16) 9... Qc7 $11 {[#]} 10. a3 $146 {[%cal Ba2a3,Ba3a4][%mdl 32]} ({Predecessor:} 10. Be2 a5 11. a4 b4 12. Nd1 Be6 13. Nf2 Nbd7 14. O-O Nb6 15. Rfe1 Nc4 16. Bxc4 Bxc4 {½-½ (28) Zezelj,M (1939)-Tomljanovic,G (2103) Rijeka 2020}) 10... a6 11. Be2 Bb7 12. a4 b4 13. Nd1 a5 14. c3 Na6 15. O-O $36 {[%mdl 2048] White has good play.} Rb8 16. Nf2 Bc8 17. Bc4 {White is more active.} d5 (17... O-O $16) 18. Bf4 $18 Qb6 19. exd5 O-O (19... bxc3 {is a better defense.} 20. bxc3 (20. Qxc3 Ra8 $18) 20... Nxd5 21. Bxb8 Nxb8) 20. dxc6 Nc7 21. cxb4 axb4 22. d5 {[#] Strongly threatening Be3.} Rd8 $2 (22... Ra8 23. Rfe1 Re8) 23. Be3 {Weighted Error Value: White=0.11 (very precise) /Black=0.42} 1-0

[Event "Benidorm Open-A 2022"]
[Site "Benidorm"]
[Date "2022.12.09"]
[Round "8.1"]
[White "Sattarov, Bobir"]
[Black "Saydaliev, Saidakbar"]
[Result "1/2-1/2"]
[ECO "D14"]
[WhiteElo "2433"]
[BlackElo "2376"]
[Annotator "TA"]
[PlyCount "62"]
[EventDate "2022.12.03"]
[EventType "swiss"]
[EventCountry "ESP"]
[SourceTitle "playchess.com"]
[Source "ChessBase"]
[SourceQuality "1"]
[TimeControl "5400+30"]

{[%evp 21,62,6,7,4,8,11,10,12,14,11,35,12,19,0,0,0,0,0,5,0,0,0,0,0,0,0,0,0,0,0,0,0,0,0,0,0,0,0,0,0,0,0,0]} 1. d4 d5 2. c4 c6 3. cxd5 cxd5 4. Nc3 Nc6 5. Nf3 Nf6 6. Bf4 Bf5 7. e3 a6 8. Bd3 Bxd3 9. Qxd3 e6 10. O-O Bd6 11. Bxd6 Qxd6 12. Rfc1 {12.Rfc1 scores better than 12.Rac1. D13: Slav Defence: Exchange variation without ...Bf5.} O-O 13. Na4 Nd7 14. Nc5 Nxc5 15. Rxc5 Rfc8 16. Rac1 (16. Qb3 $5 {[%cal Rb3b7]}) 16... Ne7 {The position is equal.} 17. Rxc8+ Rxc8 18. Rxc8+ Nxc8 $11 {[%mdl 4096] Endgame KQN-KQN} 19. Qc3 Ne7 20. Kf1 f6 21. Ke2 Qc6 22. Qxc6 Nxc6 {[#] KN-KN} 23. a3 $146 ({Predecessor:} 23. Kd2 Kf7 24. Ng1 Ke7 25. Ne2 Kd6 26. b3 b6 27. a3 Nb8 28. Nc3 Nd7 29. Ne2 Nb8 30. Nc3 Nd7 {½-½ (30) Al Sayed,M (2507)-Hamdouchi,H (2616) Doha 2014}) 23... Kf7 24. b4 Ke7 25. Kd3 Kd6 26. Kc3 b6 27. g4 a5 28. b5 Na7 29. a4 Nc8 30. Kd3 Ne7 31. h3 Nc8 {An even fight not without its subleties.   Weighted Error Value: White=0.04 (flawless) /Black=0.02 (flawless)} 1/2-1/2

[Event "Benidorm Open-A 2022"]
[Site "Benidorm"]
[Date "2022.12.09"]
[Round "8.2"]
[White "Sarkar, Justin"]
[Black "Van Delft, Merijn"]
[Result "1-0"]
[ECO "D43"]
[WhiteElo "2350"]
[BlackElo "2367"]
[Annotator "TA"]
[PlyCount "55"]
[EventDate "2022.12.03"]
[EventType "swiss"]
[EventCountry "ESP"]
[SourceTitle "playchess.com"]
[Source "ChessBase"]
[SourceQuality "1"]
[TimeControl "5400+30"]

{[%evp 14,54,29,31,33,25,34,18,17,18,29,22,20,33,28,22,24,22,20,30,22,20,14,25,177,8,70,0,0,0,0,-38,-42,-52,0,0,6,0,29994,29995,29995,29996,29999]} 1. d4 d5 2. c4 c6 3. Nf3 Nf6 4. Nc3 {[%cal Bb1c3,Bc3a4,Ba4b6][%mdl 32]} e6 5. Bg5 h6 6. Bxf6 Qxf6 7. Qb3 a5 8. e3 a4 {D43: Semi-Slav: 5 Bg5 h6.} 9. Nxa4 {Nb6 is the strong threat.} dxc4 $1 10. Bxc4 {And now Nb6 would win.} (10. Qxc4 $2 {is the wrong capture.} b5 11. Qc2 bxa4 $19) 10... b5 {[#] The position is equal.} 11. Bxb5 cxb5 12. Nb6 Qd8 $1 13. Nxa8 Qa5+ 14. Nd2 Bd7 {[#]} 15. d5 $1 {[%cal Od5e6]} Qxa8 16. dxe6 fxe6 17. O-O Be7 {[#]} 18. Rfd1 $146 ({Predecessor:} 18. Nf3 Bf6 19. Rfd1 {½-½ (19) Lalith,B (2573)-Motylev,A (2655) Moscow 2016}) 18... Na6 $2 (18... O-O $11) 19. Nf3 $2 ({White should try} 19. Qd3 $18) 19... Nc5 $11 20. Qc2 (20. Qc3 $14 O-O 21. b4) 20... O-O 21. Ne5 Be8 22. Ng6 {Chess con chili.} Bxg6 23. Qxg6 Bf6 ({Black should play} 23... Rf5 $1 $15 24. Qg4 Ne4) 24. Rac1 $36 {[%mdl 2048] White has good play.} Na4 25. Rd7 Nb6 $2 {[%mdl 8192] [#]} (25... Qe8 $11 26. Qxe8 Rxe8) 26. Rxg7+ $3 {[%mdl 512] White mates.} Bxg7 27. Rc7 {[%csl Gc7][%cal Rg6g7]} ({Not} 27. Qxe6+ Kh8 28. Qxb6 Qxa2 29. Qxb5 Bxb2 $11) 27... Nd5 28. Qxg7# {Weighted Error Value: White=0.23 (precise) /Black=0.50} 1-0

[Event "Benidorm Open-A 2022"]
[Site "Benidorm"]
[Date "2022.12.09"]
[Round "8.3"]
[White "Fernandez Guillen, Ernesto J."]
[Black "Assylov, Miras"]
[Result "1-0"]
[ECO "B12"]
[WhiteElo "2462"]
[BlackElo "2025"]
[Annotator "TA"]
[PlyCount "75"]
[EventDate "2022.12.03"]
[EventType "swiss"]
[EventCountry "ESP"]
[SourceTitle "playchess.com"]
[Source "ChessBase"]
[SourceQuality "1"]
[TimeControl "5400+30"]

{[%evp 11,75,14,10,-2,-10,-2,0,0,11,-7,-22,0,0,-4,0,-16,-34,-23,-30,-49,-48,-58,-22,-1,0,0,0,-7,90,46,52,45,34,40,36,11,22,25,81,97,97,102,170,157,167,141,191,183,170,183,343,247,364,264,410,391,1598,1695,2036,1888,29991,29992,29992,29990,29993,29994]} 1. e4 c6 {[%cal Bc7c6,Bc6c5][%mdl 32]} 2. d4 d5 3. e5 Bf5 4. Nf3 e6 5. Be2 c5 6. O-O Nc6 7. Nc3 {B12: Caro-Kann: Advance Variation.} a6 8. Be3 cxd4 9. Nxd4 {The position is equal.} Nge7 10. g4 Bg6 11. f4 Nxd4 12. Bxd4 {[#]} (12. Qxd4 $5 {[%cal Rf4f5]} Nc6 13. Qb6 $11) 12... h5 $146 ({Predecessor:} 12... Nc6 13. f5 exf5 14. gxf5 Qg5+ 15. Kh1 Bxf5 16. Nxd5 Be4+ 17. Bf3 Bxf3+ 18. Qxf3 O-O-O 19. Bb6 Nxe5 20. Qh3+ Nd7 21. Rf5 Qd2 22. Bxd8 Kxd8 23. Nc3 {1-0 (23) Dragun,K (2585)-Wang,K (2416) Ledyard 2019}) 13. f5 Bh7 14. fxe6 (14. gxh5 Nxf5 15. Qd3 Be7 $19) 14... fxe6 15. gxh5 Nf5 16. Bf2 Be7 {[%mdl 1024] Black has compensation.} 17. Bd3 $1 Bh4 18. Qg4 Qg5 19. h3 O-O (19... Bxf2+ 20. Rxf2 Qxg4+ 21. hxg4 $14) (19... Nh6 $1 $11 {keeps the balance.} 20. Qxg5 (20. Bxh4 Qe3+ 21. Bf2 Nxg4 $11) 20... Bxg5) 20. Bxh4 (20. Kg2 {is more complex.} d4 21. Ne2 Qd2 22. Rad1) 20... Qxg4+ {[%mdl 64] Remove Defender} 21. hxg4 Nxh4 22. Bxh7+ Kxh7 23. Kh2 $36 {[%mdl 2048] White is pushing.} Nf3+ 24. Kg3 Nd4 ({Don't take} 24... Nxe5 25. Rxf8 Rxf8 26. Re1 $16) (24... Nd2 $11 25. Rxf8 Rxf8) 25. Rad1 $1 $16 {Strongly threatening Rxf8.} Nxc2 26. Ne2 Kg8 {[#]} (26... Ne3 $16 27. Rxf8 Rxf8) 27. Rxf8+ $1 $18 Rxf8 {[%mdl 4096] Endgame KRN-KRN} 28. Rc1 Nb4 {[#]} (28... Ne3 $16) 29. Nd4 $1 {And now Rc7 would win.} Nd3 30. Rc7 Re8 (30... Nxe5 31. Nxe6 (31. Rxb7 g5 $18) 31... Rf3+ 32. Kh4 Re3) 31. Nf3 ({Weaker is} 31. Rxb7 Nxe5 32. Ra7 Nf7 33. Rxa6 e5 $18) 31... Nxb2 (31... b5 $142 32. b3 b4) 32. Rxb7 Nc4 (32... Nd3 {was necessary.} 33. Rb6 Nc5) 33. g5 {[%cal Bg4g5,Bg5g6][%mdl 32]} Kh8 $2 (33... Na5 34. Rb6 Rc8 35. Rxe6 Nc6) 34. g6 Ne3 35. Nd4 {Kf3 is the strong threat.} Nf5+ 36. Nxf5 {White mates.} exf5 37. Kf4 Rd8 38. e6 {Weighted Error Value: White=0.11 (very precise) /Black=0.52} 1-0

[Event "Benidorm Open-A 2022"]
[Site "Benidorm"]
[Date "2022.12.09"]
[Round "8.4"]
[White "Van Foreest, Machteld"]
[Black "Ilamparthi A R"]
[Result "1-0"]
[ECO "B40"]
[WhiteElo "2206"]
[BlackElo "2336"]
[Annotator "TA"]
[PlyCount "101"]
[EventDate "2022.12.03"]
[EventType "swiss"]
[EventCountry "ESP"]
[SourceTitle "playchess.com"]
[Source "ChessBase"]
[SourceQuality "1"]
[TimeControl "5400+30"]

{[%evp 35,101,21,26,0,0,0,0,0,0,0,0,0,0,0,47,40,53,49,154,157,415,410,370,427,421,393,320,370,581,608,605,615,607,609,602,605,566,560,1038,1034,1004,989,927,924,831,704,1132,1124,5173,5306,29965,5118,2285,1668,4618,1287,5785,5638,2385,1357,29980,29981,29980,29982,29981,29982,29983,29984]} 1. e4 c5 2. Nf3 e6 3. d4 cxd4 4. Nxd4 Nf6 5. Nc3 Nc6 6. Nxc6 bxc6 7. e5 Nd5 8. Ne4 Qc7 9. f4 Qb6 10. c4 Bb4+ 11. Ke2 f5 12. Nf2 Ba6 13. Kf3 Ne7 14. Be3 Bc5 15. Bxc5 Qxc5 16. Qd6 Qb6 17. b3 c5 18. Rd1 Bb7+ (18... Qxd6 {simplifies} 19. exd6 Bb7+ 20. Ke3 Ng6) 19. Kg3 {B45: Sicilian Four Knights.} (19. Ke3 {keeps more tension.} Rd8 20. Be2 Nc8 21. Qxb6 axb6 22. Nd3) 19... Qxd6 (19... Rd8 {feels hotter.} 20. Be2 Nc8 21. Qxb6 axb6 22. a4 d6) 20. exd6 Ng8 21. Be2 {The position is equal.} Nf6 22. Bf3 Bxf3 23. Kxf3 {[#]} Rc8 $146 ({Predecessor:} 23... h5 24. Rhe1 Rc8 25. Nd3 Rc6 26. Ne5 Ra6 27. Rd2 Ne4 28. Rxe4 fxe4+ 29. Kxe4 Rf8 30. h4 Rf5 31. g3 Kd8 32. Ke3 {½-½ (32) Gagliardi,V (2398)-Dieckmann,E (2372) ICCF email 2002}) 24. h3 Rc6 (24... h5 $11) 25. g4 $1 $14 fxg4+ 26. hxg4 O-O {[#]} ({Better is} 26... h5 $14) 27. Nd3 $1 $16 {Threatens to win with Ne5. White is more active.} g5 $2 {Black cannot hold the game after this.} (27... Rd8 $16 28. Ne5 Ra6) 28. Ne5 $18 ({Weaker is} 28. fxg5 Nd5+ 29. Kg3 Nc3 $18) 28... Ra6 29. fxg5 Nd5+ 30. Kg3 Nc3 31. Nxd7 $1 Ne4+ (31... Nxd1 $142 32. Nxf8 Rxd6) 32. Kh4 Rd8 33. Nf6+ Nxf6 34. gxf6 {[#] And now Kg5 would win.} Raxd6 35. Rxd6 Rxd6 {[%mdl 4096] Endgame KR-KR} 36. Kg5 {[%cal Of6f7] f7+! is the strong threat.} Rd2 {Against f7+} 37. f7+ Kxf7 38. Rxh7+ Ke8 39. Rxa7 Rf2 40. Rc7 Rxa2 41. Kf6 {[%cal Og4g5] Black must now prevent g5!} Rb2 42. Kxe6 {[%cal Rc7c8]} Kd8 {Against Rc8+} 43. Rd7+ (43. Rxc5 $142 Re2+ 44. Re5 Ra2 45. g5 Ke8 46. b4 Rb2 47. b5 Rb3 48. g6) 43... Ke8 44. Rb7 {[%cal Rb7b8]} Kd8 45. Kd6 {[%cal Rb7b8]} Kc8 {Inhibits Rb8+.} 46. Rb5 {White threatens g5 and mate.} Rd2+ 47. Ke6 Rd3 48. Rxc5+ {White mates.} Kb7 49. g5 {[%cal Bg4g5,Bg5g6][%mdl 32]} Re3+ 50. Re5 Rf3 51. g6 {Weighted Error Value: White=0.06 (flawless) /Black=0.67} 1-0

[Event "Benidorm Open-A 2022"]
[Site "Benidorm"]
[Date "2022.12.09"]
[Round "8.5"]
[White "Ajay Karthikeyan"]
[Black "Christiansen, Johan-Sebastian"]
[Result "1/2-1/2"]
[ECO "B29"]
[WhiteElo "2441"]
[BlackElo "2582"]
[Annotator "TA"]
[PlyCount "65"]
[EventDate "2022.12.03"]
[EventType "swiss"]
[EventCountry "ESP"]
[SourceTitle "playchess.com"]
[Source "ChessBase"]
[SourceQuality "1"]
[TimeControl "5400+30"]

{[%evp 10,65,62,58,61,70,60,55,55,58,60,56,51,34,39,39,45,47,56,52,62,0,95,0,0,0,35,27,44,0,0,0,0,0,7,0,17,18,47,67,112,108,121,121,121,121,112,117,157,157,157,112,109,98,125,96,153,60]} 1. e4 {[%cal Be2e4,Be4e5][%mdl 32]} c5 2. Nf3 Nf6 3. e5 Nd5 4. Nc3 Nxc3 5. dxc3 Nc6 6. Bf4 Qb6 {B29: Sicilian: 2 Nf3 Nf6 (Nimzowitsch Variation).} 7. b3 Qc7 8. Qd2 {[%cal Oe5e6] Hoping for e6!} e6 {White is slightly better.} 9. h4 {[%cal Bh2h4,Bh4h5][%mdl 32]} h6 10. h5 b6 11. Be2 Bb7 {[#]} 12. c4 $146 ({Predecessor:} 12. Rh4 Ne7 13. Rg4 g5 14. hxg6 Nxg6 15. O-O-O O-O-O 16. Kb2 Bg7 17. Qe3 h5 18. Rg3 {½-½ (43) Popov,I (2592)-Vitiugov,N (2719) St Petersburg 2018}) 12... O-O-O 13. O-O-O g5 14. hxg6 fxg6 15. Qe3 (15. Kb1 $14) 15... Bg7 (15... Ne7 $1 $11) 16. g4 {White has more active pieces. The black rooks are badly placed.} (16. Bxh6 $16 Bxe5 17. Nxe5 Qxe5 18. Qxe5 Nxe5 19. Bg5 Rxh1 20. Rxh1) 16... g5 $36 {[%mdl 2048] Black fights for an advantage.} 17. Bg3 Nd4 (17... Rhf8 $5 {[%cal Rc6d4]}) 18. Rhe1 $1 Nxe2+ 19. Rxe2 Rdf8 20. Nd2 h5 21. gxh5 (21. Qxg5 $2 {too greedy.} Bf3 22. Qxg7 (22. Nxf3 $2 Bh6 $19) 22... Bxe2 $17) 21... g4 22. Kb1 Rxh5 23. Ne4 Rf3 (23... Bc6 {feels hotter.} 24. Nf6 Bh6 25. Qd3 Rh3) 24. Qd2 {[#] Threatens to win with Nd6+.} Bxe4 (24... Bxe5 $2 25. Bxe5 Rxe5 26. Nd6+ Kb8 27. Rxe5 $18) 25. Rxe4 Rf8 26. Qe2 Rg5 27. Re1 ({Much worse is} 27. Rxg4 $6 Rxg4 28. Qxg4 Bxe5 $11) 27... Rff5 28. Rxg4 Qc6 29. Rxg5 Rxg5 30. Bf4 Rf5 31. Qg4 Bf8 32. Bg3 a6 ({Better is} 32... Qf3 33. Qg8 Qh5) 33. Qe4 {Weighted Error Value: White=0.12 (very precise) /Black=0.17 (very precise)} (33. Qg6 $16) 1/2-1/2